{"text_format":"1","workbook":"xlsx","n_sheets":1,"sheets":["Základ"],"not_rendered":{"charts":0,"images":0,"macros":1,"external_links":0,"defined_names":1,"comments":0,"pivot_tables":0},"unopened":[],"bounds":{"document_bytes":16777216,"sheet_cells":100000,"rows_first":2000,"rows_last":500,"rows_between":2000,"halvings":0,"cell_chars":16384,"cell_head_chars":4096},"cells_cut":0,"cells_raw":0,"read":"whole","date_system":"1900"}

{"sheet":"Základ","index":0,"n_rows":37,"n_cols":30,"rows_kept":37,"cut":false,"hidden":false,"merged":[[23,4,24,23],[26,4,26,5],[28,13,28,15],[32,13,32,15],[29,13,29,15],[30,13,30,15],[31,13,31,15],[1,4,2,23],[33,21,33,23],[34,21,34,23],[35,21,35,23],[27,12,27,13],[33,13,33,15],[34,13,34,15],[35,13,35,15],[11,16,11,17],[34,18,34,19],[35,18,35,19],[28,17,28,19],[26,13,26,23],[30,21,30,23],[31,21,31,23],[32,21,32,23],[36,13,36,15],[28,21,28,23],[29,21,29,23],[36,21,36,23],[30,18,30,19],[31,18,31,19],[32,18,32,19],[33,18,33,19],[29,18,29,19],[36,18,36,19]]}
[]
[null,null,null,null,{"$f":"E24","v":"DKO - 8 / 4"}]
[null,null,null,null,null,null,null,null,null,null,null,null,null,null,null,null,null,null,null,null,null,null,null,null,null,null,null,null,null,"© V.Hajdovský 2016, v. 4.01"]
[]
[null,"B2",null,null,"B1",null,null,null,"A1",null,null,null,"A2",null,null,null,"A3",null,null,null,"A4"]
[null,"umístění  5 - 6",null,null,"umístění  7 - 8",null,null,null,"1 - 4",null,null,null,null,null,null,null,"umístění  3 - 4",null,null,null,"umístění  1 - 2"]
[null,null,null,null,null,null,null,1,{"$f":"E30","v":0}]
[null,9,null,null,7,null,null,8,{"$f":"E37","v":0},null,null,null,5,null,null,null,11]
[null,{"$f":"lepsi(E9)","v":""},null,null,{"$f":"horsi(I7)","v":""},null,null,null,null,null,null,null,{"$f":"lepsi(I7)","v":""},null,null,null,{"$f":"lepsi(M9)","v":""}]
[null,{"$f":"horsi(M17)","v":""},null,null,{"$f":"horsi(I11)","v":""},null,null,null,null,null,null,null,{"$f":"lepsi(I11)","v":""},null,null,null,{"$f":"lepsi(B17)","v":""}]
[null,"[6]","(11)",null,null,null,null,5,{"$f":"E34","v":0},null,null,null,null,"(10)",null,null,"[9]"]
[null,null,null,null,null,null,null,4,{"$f":"E33","v":0},null,null,null,null,null,null,null,"o třetí místo - nepovinné",null,null,null,"FINÁLE"]
[null,null,null,null,null,null,null,null,null,null,null,null,null,null,null,null,{"$f":"horsi(Q9)","v":""},null,null,null,{"$f":"lepsi(Q9)","v":""}]
[null,null,null,null,null,null,null,null,null,null,null,null,null,null,null,null,{"$f":"horsi(Q17)","v":""},null,null,null,{"$f":"lepsi(Q17)","v":""}]
[null,null,null,null,null,null,null,3,{"$f":"E32","v":0}]
[null,10,null,null,8,null,null,6,{"$f":"E35","v":0},null,null,null,6,null,null,null,12]
[null,{"$f":"lepsi(E17)","v":""},null,null,{"$f":"horsi(I15)","v":""},null,null,null,null,null,null,null,{"$f":"lepsi(I15)","v":""},null,null,null,{"$f":"lepsi(M17)","v":""}]
[null,{"$f":"horsi(M9)","v":""},null,null,{"$f":"horsi(I19)","v":""},null,null,null,null,null,null,null,{"$f":"lepsi(I19)","v":""},null,null,null,{"$f":"lepsi(B9)","v":""}]
[null,"[5]","(12)",null,null,null,null,7,{"$f":"E36","v":0},null,null,null,null,"(9)",null,null,"[10]",null,null,null,null,null,null,null,null,null,null,"Pokyny k pavouku:"]
[null,null,null,null,null,null,null,2,{"$f":"E31","v":0},null,null,null,null,null,null,null,null,null,null,null,null,null,null,null,null,null,null,"Nadpis v ř. 24+25 lze použít pro název turnaje."]
[null,"umístění  5 - 6",null,null,"umístění  7 - 8",null,null,null,null,null,null,null,null,null,null,null,"umístění  3 - 4",null,null,null,"umístění  1 - 2",null,null,null,null,null,null,"Seznam účastníků lze naplnit ve volném pořadí,"]
[null,"B2",null,null,"B1",null,null,null,"A1",null,null,null,"A2",null,null,null,"A3",null,null,null,"A4",null,null,"?",null,null,null,"které můžeme dále upravit mícháním a přesuny."]
[null,null,null,null,null,null,null,null,null,null,null,null,null,null,null,null,null,null,null,null,null,null,null,null,null,null,null,"Možnost úprav končí s prvním výsledkem."]
[null,null,null,null,"DKO - 8 / 4",null,null,null,null,null,null,null,null,null,null,null,null,null,null,null,null,null,null,null,null,null,null,"Neobsazená místa seznamu je třeba vyplnit: ***"]
[]
[null,null,null,null,null,null,null,null,null,null,null,null,null,null,null,null,null,null,null,null,null,null,null,null,null,null,null,"Výsledky do pavouka se zadávají po klepnutí"]
[null,null,null,null,"Nasazení hráčů",null,null,null,null,null,null,null,null,"Výsledková listina",null,null,null,null,null,null,null,null,null,null,null,null,null,"pravou myší na pole vybraného zápasu."]
[null,null,null,null,null,null,null,null,null,null,null,null,null,null,null,null,null,null,null,null,null,null,null,null,null,null,null,"Nerozhodné výsledky nejsou v pavouku povoleny."]
[null,null,null,null,"Jméno","Poř.",null,null,null,null,null,null,null,"Pořadí",null,null,"Jméno","Hry/Výhry",null,null,"Skóre","Koef."]
[null,null,null,null,null,1,null,null,null,null,null,null,null,"1.",null,null,{"$f":"lepsi(U13)","v":""},null,null,null,null,null,null,null,null,null,null,"Výsledovka se plní automaticky v okamžiku,"]
[null,null,null,null,null,2,null,null,null,null,null,null,null,"2.",null,null,{"$f":"horsi(U13)","v":""},null,null,null,null,null,null,null,null,null,null,"kdy hráč končí svou aktivní účast na turnaji."]
[null,null,null,null,null,3,null,null,null,null,null,null,null,"3. - 4.",null,null,{"$f":"horsi(Q9)","v":""},null,null,null,null,null,null,null,null,null,null,"Výsledky jsou členěny do skupin dle umístění."]
[null,null,null,null,null,4,null,null,null,null,null,null,null,null,null,null,{"$f":"horsi(Q17)","v":""}]
[null,null,null,null,null,5,null,null,null,null,null,null,null,"5. - 6.",null,null,{"$f":"horsi(B9)","v":""},null,null,null,null,null,null,null,null,null,null,"Pro opakované použití je vhodné sešit uložit"]
[null,null,null,null,null,6,null,null,null,null,null,null,null,null,null,null,{"$f":"horsi(B17)","v":""},null,null,null,null,null,null,null,null,null,null,"mezi vlastní šablony ve formátu *.XLTM."]
[null,null,null,null,null,7,null,null,null,null,null,null,null,"7. - 8.",null,null,{"$f":"horsi(E9)","v":""},null,null,null,null,null,null,null,null,null,null,"Použitý sešit ovšem lze využít pro další turnaj"]
[null,null,null,null,null,8,null,null,null,null,null,null,null,null,null,null,{"$f":"horsi(E17)","v":""},null,null,null,null,null,null,null,null,null,null,"také po jeho iniciaci službou Čištění listu."]